bitfinex/quotes_ETHUSD_20250219
["timestamp","ask_amount","ask_price","bid_price","bid_amount"]
[1739965218434,3.65918,2732.9,2732.6,0.55]
[1739965218641,3.65929,2732.8,2732.6,0.55]
[1739965219078,3.65929,2732.8,2732.7,0.59779573]
[1739965219402,3.65929,2732.8,2732.7,0.55]
[1739965219742,3.0,2733.0,2732.7,0.55]
[1739965219743,6.65906,2733.0,2732.7,0.55]
[1739965220347,3.65916,2732.9,2732.7,0.55]
[1739965221415,10.31815,2733.0,2732.7,0.55]
[1739965221616,6.65906,2733.0,2732.7,0.55]
[1739965221852,10.31814,2733.0,2732.7,0.55]
[1739965222153,6.65906,2733.0,2732.7,0.55]
[1739965222531,3.65914,2732.9,2732.7,0.55]
[1739965223563,6.65906,2733.0,2732.7,0.55]
[1739965224823,10.31814,2733.0,2732.7,0.55]
[1739965225335,6.65906,2733.0,2732.7,0.55]
[1739965227228,3.65906,2733.0,2732.7,0.55]
[1739965227625,7.31814,2733.0,2732.7,0.55]
[1739965227827,3.65906,2733.0,2732.7,0.55]
[1739965228270,7.31812,2733.0,2732.7,0.55]
[1739965228454,3.65916,2732.9,2732.7,0.55]
[1739965229771,5.82384762,2733.1,2732.7,0.55]
[1739965229950,3.65894,2733.1,2732.8,0.7958]
[1739965230946,7.31789,2733.1,2732.8,0.7958]
[1739965231540,3.65892,2733.1,2732.8,0.7958]
[1739965233287,3.65898,2733.0,2732.8,0.7958]
[1739965234279,3.65911,2732.9,2732.8,1.3458]
[1739965234990,3.65901,2733.0,2732.8,1.3458]
[1739965238652,3.65901,2733.0,2732.1,0.264]
[1739965238653,3.65949,2732.7,2732.5,0.7687]
[1739965238848,3.65949,2732.7,2732.2,0.7794]
[1739965239055,3.65949,2732.7,2732.6,0.0805842]
[1739965239370,3.65952,2732.6,2732.3,0.55]
[1739965239989,3.65952,2732.6,2731.9,5.16691904]
[1739965239990,2.13210762,2732.5,2731.9,5.16691904]
[1739965240190,3.66006,2732.2,2731.9,5.16691904]
[1739965240399,3.66006,2732.2,2731.9,0.55]
[1739965241356,7.31966,2732.4,2731.9,0.55]
[1739965241557,3.65978,2732.4,2731.9,0.55]
[1739965241857,3.65992,2732.3,2731.9,0.55]
[1739965242052,3.66006,2732.2,2731.9,0.55]
[1739965242591,4.23912276,2732.3,2731.4,5.31592324]
[1739965242592,5.83040762,2732.1,2731.5,0.7721]
[1739965243093,5.83040762,2732.1,2731.4,0.1490042]
[1739965243094,3.66088,2731.6,2731.4,0.1490042]
[1739965243405,5.03159762,2731.5,2731.4,0.1490042]
[1739965245000,10.22450524,2731.5,2731.4,0.1490042]
[1739965245296,15.60450524,2731.5,2731.4,0.1490042]
[1739965246312,28.45050524,2731.5,2731.4,0.1490042]
[1739965246631,28.45481953,2731.5,2731.4,0.1490042]
[1739965246776,31.81286412,2731.5,2731.4,0.1490042]
[1739965248240,3.6622,2730.6,2730.3,0.8024]
[1739965248721,3.66209,2730.7,2730.4,0.63434611]
[1739965248920,3.66209,2730.7,2730.4,0.55]
[1739965249249,3.66198,2730.8,2730.4,0.55]
[1739965250001,7.32402,2730.8,2730.4,0.55]
[1739965250228,3.66198,2730.8,2730.4,0.55]
[1739965250428,3.66216,2730.7,2730.4,0.55]
[1739965250630,0.7867,2730.9,2730.4,0.55]
[1739965250933,3.66176,2731.0,2730.5,0.7523]
[1739965251236,3.66162,2731.1,2730.6,0.55]
[1739965252641,3.934095,2731.1,2730.6,0.55]
[1739965252906,3.66169,2731.0,2730.6,0.55]
[1739965253219,0.7595615,2731.0,2730.6,0.55]
[1739965253419,3.66193,2730.8,2730.5,0.7523]
[1739965253733,3.66207,2730.7,2730.5,0.7523]
[1739965253932,3.66207,2730.7,2730.0,1.3758]
[1739965254139,3.66222,2730.6,2730.1,0.08536055]
[1739965255050,8.11136,2730.8,2730.1,0.08536055]
[1739965255411,4.44933,2730.8,2730.1,0.08536055]
[1739965255823,3.66193,2730.8,2730.1,0.08536055]
[1739965256450,4.92192595,2730.8,2730.1,0.08536055]
[1739965256971,4.92192595,2730.8,2730.3,0.55]
[1739965257344,1.25999595,2730.8,2730.3,0.55]
[1739965258027,4.92192595,2730.8,2730.3,0.55]
[1739965258779,1.25999595,2730.8,2730.3,0.55]
[1739965259175,4.92203595,2730.8,2730.3,0.55]
[1739965259375,4.5205256,2730.7,2730.3,0.55]
[1739965260378,0.8583856,2730.7,2730.3,0.55]
[1739965260545,1.25999595,2730.8,2730.3,0.55]
[1739965260730,3.6621,2730.7,2730.3,0.55]
[1739965261567,1.25999595,2730.8,2730.3,0.55]
[1739965262126,6.1925,2731.0,2730.3,0.55]
[1739965262428,6.1925,2731.0,2730.2,0.8102]
[1739965262429,3.66179,2730.9,2730.6,0.8205]
[1739965262860,5.38,2731.0,2730.6,0.8205]
[1739965263061,9.04168,2731.0,2730.6,0.8205]
[1739965263571,5.38,2731.0,2730.6,0.8205]
[1739965264306,9.04166,2731.0,2730.6,0.8205]
[1739965264482,3.66199,2730.8,2730.4,0.7599]
[1739965264995,3.66214,2730.7,2730.0,0.7599]
[1739965265292,3.66214,2730.7,2730.2,0.55]
[1739965265795,3.66214,2730.7,2730.4,0.55]
[1739965265996,4.469671,2730.7,2730.1,0.55]
[1739965266198,4.469671,2730.7,2730.2,0.08526709]
[1739965266398,4.41317,2730.9,2730.4,0.55]
[1739965266553,3.66195,2730.8,2730.4,0.55]
[1739965266753,4.41317,2730.9,2730.4,0.55]
[1739965267189,3.66193,2730.8,2730.4,0.55]
[1739965267379,3.66208,2730.7,2730.4,0.55]
[1739965267583,3.66222,2730.6,2730.4,0.55]
[1739965267788,3.66206,2730.7,2730.4,0.55]
[1739965268790,7.32422,2730.7,2730.4,0.55]
[1739965269224,3.66228,2730.6,2730.4,0.55]
[1739965272712,5.10074793,2730.8,2730.4,0.55]
[1739965272713,3.66207,2730.7,2730.4,0.55]
[1739965273318,3.66188,2730.9,2730.4,0.55]
[1739965273531,3.66203,2730.8,2730.4,0.55]
[1739965273737,9.04178,2731.0,2730.0,0.55]
[1739965273881,9.04178,2731.0,2729.9,0.264]
[1739965273882,5.38,2731.0,2730.4,0.55]
[1739965274083,5.38,2731.0,2730.6,0.55]
[1739965274284,5.38,2731.0,2730.8,0.55]
[1739965276916,0.7764,2731.1,2730.3,0.7919]
[1739965277117,3.66181,2730.9,2730.3,0.7919]
[1739965278788,3.0,2730.9,2730.3,0.7919]
[1739965279604,3.0,2730.9,2730.4,0.07616913]
[1739965279834,3.66148,2731.2,2730.5,0.8309]
[1739965279997,3.66148,2731.2,2730.6,0.07597154]
[1739965280334,3.0,2731.1,2730.7,0.8309]
[1739965280717,3.0,2731.1,2730.8,0.07577399]
[1739965281030,3.0,2731.1,2730.7,0.8309]
[1739965281231,3.0,2731.1,2730.8,0.07569334]
[1739965281440,6.66154,2731.1,2730.8,0.07569334]
[1739965281612,6.66154,2731.1,2730.7,0.8309]
[1739965281799,6.66154,2731.1,2730.8,0.07569334]
[1739965282131,6.66154,2731.1,2730.7,0.8309]
[1739965282629,6.66154,2731.1,2730.8,0.07569334]
[1739965282829,1.032295,2731.0,2730.8,0.07569334]
[1739965283074,3.6617,2731.0,2730.6,0.7535]
[1739965283503,3.6617,2731.0,2730.7,0.07551254]
[1739965283919,3.0,2731.1,2730.7,0.07551254]
[1739965284125,3.66168,2731.0,2730.7,0.07551254]
[1739965284545,6.66187,2730.9,2730.7,0.07551254]
[1739965285542,3.0,2730.9,2730.7,0.07551254]
[1739965285909,3.66193,2730.8,2730.7,0.07551254]
[1739965286147,6.66193,2730.8,2730.7,0.07551254]
[1739965286355,3.6625,2730.4,2730.1,5.91831904]
[1739965286650,3.66226,2730.6,2730.1,0.7514]
[1739965286651,3.66237,2730.5,2730.1,0.7514]
[1739965286862,3.0,2730.5,2730.1,0.7514]
[1739965287065,3.66247,2730.4,2730.1,0.7514]
[1739965287529,7.32501,2730.4,2730.1,0.7514]
[1739965287870,3.6626,2730.3,2730.1,0.7514]
[1739965288030,3.66273,2730.2,2730.1,0.7514]
[1739965288226,6.66243,2730.5,2730.1,0.7514]
[1739965289274,3.66254,2730.4,2730.1,0.7514]
[1739965289580,3.66267,2730.3,2730.1,0.7514]
[1739965289749,3.66273,2730.2,2730.1,0.7514]
[1739965290082,3.66273,2730.2,2729.7,0.8282]
[1739965290259,3.66254,2730.4,2729.7,0.8282]
[1739965290460,3.66261,2730.3,2729.7,0.8282]
[1739965291583,3.66261,2730.3,2729.8,0.07647172]
[1739965291870,3.66261,2730.3,2729.7,0.8282]
[1739965292075,3.66261,2730.3,2729.9,0.07637288]
[1739965292281,0.7724,2730.6,2729.5,1.01616284]
[1739965292282,3.66231,2730.6,2730.0,0.7974]
[1739965292492,3.66208,2730.7,2730.0,0.87367405]
[1739965292637,3.0,2730.8,2730.0,0.87367405]
[1739965293461,6.662,2730.8,2730.0,0.87367405]
[1739965293833,3.0,2730.8,2730.0,0.87367405]
[1739965294362,6.046168,2730.9,2730.2,0.7727]
[1739965294363,5.38,2730.9,2730.2,0.7727]
[1739965294690,5.38,2730.9,2730.4,0.7727]
[1739965295072,5.38,2730.9,2730.5,0.07603268]
[1739965295457,3.66208,2730.7,2730.5,0.07603268]
[1739965295674,3.66208,2730.7,2730.4,0.7727]
[1739965296383,3.7823,2730.8,2730.4,0.7727]
[1739965296568,3.0,2730.8,2730.4,0.7727]
[1739965297287,5.38,2730.9,2730.4,0.7727]
[1739965298019,3.0,2731.0,2730.6,0.7899]
[1739965298181,7.327946,2731.0,2730.7,0.07583511]
[1739965298387,3.666156,2731.0,2730.6,0.7899]
[1739965298590,3.0,2731.0,2730.7,0.07583511]
[1739965298783,3.0,2731.0,2730.6,0.7899]
[1739965299116,9.79678,2731.5,2730.8,0.8159]
[1739965299489,3.0,2731.3,2730.8,0.8159]
[1739965300298,3.0,2731.4,2730.8,0.8159]
[1739965300699,6.66114,2731.4,2730.8,0.8159]
[1739965300893,3.41328885,2731.4,2730.8,0.8159]
[1739965301099,3.66128,2731.3,2730.8,0.8159]
[1739965301304,3.66142,2731.2,2730.8,0.8159]
[1739965301907,3.66128,2731.3,2730.8,0.8159]
[1739965302108,0.7851,2731.1,2730.1,0.71939541]
[1739965302339,6.6618,2730.9,2730.2,0.798]
[1739965302519,6.6618,2730.9,2730.2,0.87131163]
[1739965303146,3.66202,2730.8,2730.2,0.87131163]
[1739965303705,3.66208,2730.7,2730.2,0.87131163]
[1739965306142,6.6618,2730.9,2730.2,0.87131163]
[1739965306453,8.21904295,2730.9,2730.2,0.87131163]
[1739965306759,3.0,2731.0,2730.2,0.87131163]
[1739965306915,5.38,2731.1,2730.5,0.55]
[1739965307120,3.0,2731.2,2730.6,0.8321]
[1739965307344,7.32268,2731.3,2730.6,0.8321]
[1739965307616,8.314568,2731.3,2730.8,0.8321]
[1739965307825,3.66212,2730.7,2730.3,0.8321]
[1739965308018,3.66212,2730.7,2730.4,0.06592199]
[1739965308358,6.66193,2730.8,2730.3,0.8321]
[1739965308717,6.66193,2730.8,2730.4,0.06340625]
[1739965308918,3.66206,2730.7,2730.4,0.06340625]
[1739965309118,3.66228,2730.6,2730.3,0.8321]
[1739965309318,3.66246,2730.4,2730.3,0.8321]
[1739965309543,3.66246,2730.4,2729.9,0.7743]
[1739965309858,3.66263,2730.3,2729.9,0.7743]
[1739965310045,3.66296,2730.1,2729.9,0.7743]
[1739965310722,3.66274,2730.2,2729.9,0.7743]
[1739965310966,3.66295,2730.1,2729.4,9.2705]
[1739965311274,3.66301,2730.0,2729.4,9.0065]
[1739965311566,3.66295,2730.1,2729.4,9.0065]
[1739965311567,3.66317,2729.9,2729.4,9.0065]
[1739965311715,3.66295,2730.1,2729.4,9.0065]
[1739965311921,0.7965,2730.2,2729.4,9.0065]
[1739965311922,7.45924,2730.2,2729.5,0.7637]
[1739965312321,3.7965,2730.2,2729.5,0.7637]
[1739965312623,3.66288,2730.1,2729.5,0.7637]
[1739965313067,7.32586,2730.1,2729.5,0.7637]
[1739965313286,3.66288,2730.1,2729.5,0.7637]
[1739965313788,7.32586,2730.1,2729.5,0.7637]
[1739965313953,3.66288,2730.1,2729.5,0.7637]
[1739965314540,3.7965,2730.2,2729.5,0.7637]
[1739965314761,7.45935,2730.2,2729.5,0.7637]
[1739965315077,3.66288,2730.1,2729.5,0.7637]
[1739965317334,3.66303,2730.0,2729.5,0.7637]
[1739965317949,3.66328,2729.8,2729.5,0.7637]
[1739965318140,6.6632,2729.9,2729.5,0.7637]
[1739965319079,3.0,2729.9,2729.5,0.7637]
[1739965319382,3.0,2729.9,2729.6,0.06199971]
[1739965319775,6.66319,2729.9,2729.5,0.7637]
[1739965319976,3.0,2729.9,2729.5,0.7637]
[1739965320185,6.66316,2729.9,2729.6,0.06199971]
[1739965320480,6.66316,2729.9,2729.5,0.7637]
[1739965320712,3.0,2729.9,2729.6,0.06199971]
[1739965321079,3.0,2729.9,2729.5,0.7637]
[1739965321404,3.0,2730.1,2729.7,0.8145]
[1739965321617,4.2775319,2730.1,2729.7,0.8145]
[1739965321970,5.38,2730.2,2729.7,0.8145]
[1739965322171,3.66219,2730.6,2729.8,0.0628523]
[1739965322372,4.60425165,2730.8,2730.0,0.815]
[1739965322719,0.94227165,2730.8,2730.1,0.06255044]
[1739965322876,0.94227165,2730.8,2730.2,0.8038]
[1739965323072,5.38,2731.0,2730.3,0.0621813]
[1739965323305,3.66146,2731.2,2730.4,0.8038]
[1739965323478,3.66146,2731.2,2730.4,0.86588249]
[1739965323667,7.32295,2731.2,2730.4,0.86588249]
[1739965323872,3.66146,2731.2,2730.4,0.86588249]
[1739965324116,3.66153,2731.1,2730.4,0.86588249]
[1739965324958,3.66169,2731.0,2730.4,0.86588249]
[1739965325308,7.32345,2731.0,2730.4,0.86588249]
[1739965325958,3.66169,2731.0,2730.4,0.86588249]
[1739965328412,0.74938132,2731.8,2730.5,0.58662096]
[1739965328413,5.38,2731.5,2730.5,0.58662096]
[1739965328656,3.66116,2731.4,2730.6,0.89027955]
[1739965329249,7.32238,2731.4,2730.6,0.89027955]
[1739965329464,8.674328,2731.4,2730.6,0.89027955]
[1739965329639,5.013078,2731.4,2730.6,0.89027955]
[1739965329811,8.674278,2731.4,2730.6,0.89027955]
[1739965330012,5.013078,2731.4,2730.6,0.89027955]
[1739965330511,0.64,2730.7,2730.6,1.44027955]
[1739965330710,3.66092,2731.6,2730.7,1.3768]
[1739965330959,3.6612,2731.4,2730.8,0.8268]
[1739965331117,3.6612,2731.4,2730.8,0.88808016]
[1739965331513,0.64,2730.9,2730.8,0.88808016]
[1739965332639,0.64,2730.9,2730.8,0.06128016]
[1739965332854,0.64,2730.9,2730.5,1.0336]
[1739965333009,0.64,2730.9,2730.6,1.23152961]
[1739965333739,0.64,2730.9,2730.6,0.06147771]
[1739965334871,4.3018,2730.9,2730.6,0.06147771]
[1739965335169,3.66194,2730.8,2730.6,0.06147771]
[1739965335625,4.3018,2730.9,2730.6,0.06147771]
[1739965336749,7.96369,2730.9,2730.6,0.06147771]
[1739965336971,4.458309,2730.8,2730.6,0.06147771]
[1739965337569,4.458309,2730.8,2730.3,0.8149]
[1739965337771,4.458309,2730.8,2730.7,0.06082167]
[1739965337939,4.458309,2730.8,2730.3,0.8149]
[1739965338137,3.66194,2730.8,2730.3,0.8149]
[1739965338376,3.66194,2730.8,2730.4,0.06111804]
[1739965340448,0.8185,2730.7,2730.4,0.06111804]
[1739965340743,3.66194,2730.8,2730.4,0.06111804]
[1739965342279,5.12038,2730.9,2730.4,0.06111804]
[1739965342591,0.64,2730.9,2730.4,0.06111804]
[1739965343084,3.66194,2730.8,2730.4,0.06111804]
[1739965343297,0.64,2730.9,2730.4,0.06111804]
[1739965343751,4.30187,2730.9,2730.4,0.06111804]
[1739965343955,3.66199,2730.8,2730.4,0.06111804]
[1739965344772,3.66221,2730.6,2730.4,0.06111804]
[1739965344966,7.32453,2730.6,2730.4,0.06111804]
[1739965345283,3.66221,2730.6,2730.4,0.06111804]
[1739965347712,3.66233,2730.5,2730.4,0.06111804]
[1739965348008,4.477034,2730.5,2730.4,0.06111804]
[1739965348176,4.477034,2730.5,2730.0,0.7691]
[1739965348376,3.66233,2730.5,2730.0,0.7691]
[1739965348579,3.66233,2730.5,2730.1,0.06166622]
[1739965350212,3.66254,2730.4,2730.1,0.06166622]
[1739965350513,3.66254,2730.4,2729.9,0.7912]
[1739965350669,3.66254,2730.4,2730.2,0.06177101]
[1739965350890,4.395027,2730.4,2729.9,0.7912]
[1739965351091,3.66254,2730.4,2730.0,0.06196865]
[1739965352432,3.6626,2730.3,2730.0,0.06196865]
[1739965352737,4.4829,2730.3,2730.0,0.06196865]
[1739965352937,3.66281,2730.2,2730.0,0.06196865]
[1739965353141,3.66286,2730.1,2730.0,0.06196865]
[1739965353436,0.814597,2730.1,2729.7,0.7516]
[1739965353589,3.66314,2729.9,2729.5,1.0156]
[1739965353992,3.66314,2729.9,2729.5,0.7516]
[1739965354290,3.66314,2729.9,2729.6,0.06236403]
[1739965354719,3.66335,2729.8,2729.6,0.06236403]
[1739965354898,4.48464,2729.9,2729.6,0.06236403]
[1739965355104,3.66335,2729.8,2729.6,0.06236403]
[1739965355309,3.6634,2729.7,2729.6,0.06236403]
[1739965355487,5.0145637,2729.9,2729.6,0.06236403]
[1739965355724,8.6778237,2729.9,2729.6,0.06236403]
[1739965356026,3.66329,2729.8,2729.6,0.06236403]
[1739965356525,3.6633,2729.8,2729.6,0.06236403]
[1739965356735,3.6633,2729.8,2729.3,0.8172]
[1739965356939,3.6633,2729.8,2729.7,0.06280646]
[1739965357121,4.53108637,2729.8,2729.3,0.8172]
[1739965357293,3.6633,2729.8,2729.7,0.06280646]
[1739965357490,3.6633,2729.8,2729.3,0.8172]
[1739965357694,3.66341,2729.7,2729.4,0.06310304]
[1739965358234,5.0145637,2729.9,2729.4,0.06310304]
[1739965358446,3.66327,2729.8,2729.4,0.06310304]
[1739965358846,5.0145637,2729.9,2729.4,0.06310304]
[1739965359139,3.66343,2729.7,2729.4,0.06310304]
[1739965359636,7.32691,2729.7,2729.4,0.06310304]
[1739965359943,4.53126337,2729.7,2729.3,0.8172]
[1739965360103,3.66343,2729.7,2729.3,0.8172]
[1739965360302,0.8259,2730.1,2729.4,0.06310304]
[1739965360628,9.04286,2730.2,2729.5,0.768]
[1739965360827,9.04286,2730.2,2729.6,0.06325372]
[1739965361219,9.04286,2730.2,2729.7,0.7882]
[1739965361403,3.66289,2730.1,2729.7,0.7882]
[1739965361835,9.04286,2730.2,2729.7,0.7882]
[1739965362144,12.70571,2730.2,2729.7,0.7882]
[1739965362444,3.66289,2730.1,2729.7,0.7882]
[1739965362602,9.04285,2730.2,2729.7,0.7882]
[1739965362804,12.70569,2730.2,2729.7,0.7882]
[1739965363044,9.04283,2730.2,2729.7,0.7882]
[1739965363547,3.66283,2730.2,2729.7,0.7882]
[1739965363850,3.66283,2730.2,2729.8,0.06305602]
[1739965364013,4.29333934,2730.2,2729.7,0.7882]
[1739965364340,4.29333934,2730.2,2729.8,0.06305602]
[1739965364571,4.29331934,2730.2,2729.8,0.06305602]
[1739965364728,4.4885,2730.3,2729.7,0.7882]
[1739965364926,3.6626,2730.3,2729.7,0.7882]
[1739965365244,3.66249,2730.4,2729.8,0.06305602]
[1739965365445,7.32504,2730.4,2729.7,0.7882]
[1739965365649,7.32504,2730.4,2729.8,0.06305602]
[1739965365859,7.32504,2730.4,2729.7,0.7882]
[1739965366064,3.66249,2730.4,2729.8,0.06305602]
[1739965366359,6.1504,2730.5,2729.8,0.06305602]
[1739965366560,3.66223,2730.6,2729.9,0.8262]
[1739965366758,9.04206,2730.7,2729.9,0.8262]
[1739965366926,9.04206,2730.7,2730.1,0.8262]
[1739965367126,3.66206,2730.7,2730.1,0.8262]
[1739965367458,3.66206,2730.7,2730.2,0.06231762]
[1739965367660,3.64,2730.9,2730.2,0.06231762]
[1739965367863,7.30184,2730.9,2730.2,0.06231762]
[1739965368037,3.66204,2730.8,2730.2,0.06231762]
[1739965368561,3.66204,2730.8,2730.3,0.8009]
[1739965369261,4.30184,2730.9,2730.3,0.8009]
[1739965369615,4.30179,2730.9,2730.3,0.8009]
[1739965370465,7.96366,2730.9,2730.3,0.8009]
[1739965370623,4.30179,2730.9,2730.3,0.8009]
[1739965371029,7.96368,2730.9,2730.3,0.8009]
[1739965371267,3.66199,2730.8,2730.3,0.8009]
[1739965372637,4.30179,2730.9,2730.3,0.8009]
[1739965372981,4.30179,2730.9,2730.4,0.06205569]
[1739965374209,3.66205,2730.8,2730.4,0.06205569]
[1739965375247,3.66221,2730.6,2730.4,0.06205569]
[1739965375585,3.66201,2730.8,2730.4,0.06205569]
[1739965376773,4.30183,2730.9,2730.4,0.06205569]
[1739965377120,0.64,2730.9,2730.5,0.7834]
[1739965377288,0.64,2730.9,2730.6,0.06162768]
[1739965379092,0.64,2730.9,2730.5,0.7834]
[1739965379487,0.64,2730.9,2730.6,0.06138118]
[1739965379790,0.64,2730.9,2730.5,0.7834]
[1739965380188,0.64,2730.9,2730.6,0.06138118]
[1739965380688,0.64,2730.9,2730.5,0.7834]
[1739965380894,0.64,2730.9,2730.6,0.06138118]
[1739965381199,4.30188,2730.9,2730.5,0.7834]
[1739965381495,3.66227,2730.6,2730.0,0.7991]
[1739965381872,5.12853,2730.9,2730.0,0.83572588]
[1739965382060,3.66195,2730.8,2730.0,0.83572588]
[1739965382461,3.66195,2730.8,2730.0,0.7991]
[1739965382657,16.57012034,2730.7,2730.0,0.7991]
[1739965382885,3.66214,2730.7,2730.1,1.3858019]
[1739965383897,3.662,2730.8,2730.1,1.3858019]
[1739965384462,3.66214,2730.7,2730.1,0.7628]
[1739965384901,9.6819,2730.9,2730.1,0.7628]
[1739965385364,3.66193,2730.8,2730.1,0.7628]
[1739965386810,7.32398,2730.8,2730.1,0.7628]
[1739965386961,3.66207,2730.7,2730.1,0.7628]
[1739965387413,9.68191,2730.9,2730.1,0.7628]
[1739965387611,7.654366,2730.9,2730.1,0.7628]
[1739965387908,3.66196,2730.8,2730.1,0.7628]
[1739965388258,7.32397,2730.8,2730.1,0.7628]
[1739965388707,3.66196,2730.8,2730.1,0.7628]
[1739965389017,3.66204,2730.8,2730.1,0.7628]
[1739965389176,0.968204,2730.8,2730.1,0.7628]
[1739965389385,3.66213,2730.7,2730.1,0.7628]
[1739965389581,3.66213,2730.7,2730.1,0.614]
[1739965390312,4.630154,2730.8,2730.1,0.614]
[1739965390663,8.292194,2730.8,2730.1,0.614]
[1739965391007,0.968204,2730.8,2730.1,0.614]
[1739965391379,6.8372,2730.9,2730.1,0.614]
[1739965391612,16.654381,2730.7,2730.2,0.03662376]
[1739965391904,6.02,2730.9,2729.9,0.264]
[1739965392777,6.02,2730.9,2730.0,0.8083]
[1739965393491,0.64,2730.9,2730.1,0.7763]
[1739965393665,0.64,2730.9,2730.2,0.5943219]
[1739965393865,0.64,2730.9,2730.3,0.7763]
[1739965396351,0.64,2730.9,2730.4,0.82116927]
[1739965398542,6.66088,2731.6,2730.4,0.82116927]
[1739965398747,8.58294495,2731.6,2730.5,0.35666988]
[1739965398899,8.58294495,2731.6,2730.6,0.82087526]
[1739965399862,3.0,2731.6,2730.6,0.82087526]
[1739965399999,10.09150759,2731.8,2730.6,0.82087526]
[1739965400643,3.66074,2731.7,2730.7,0.264]
[1739965400839,3.66074,2731.7,2730.8,0.8258]
[1739965401028,3.66074,2731.7,2730.8,0.88457771]
[1739965403246,6.43090759,2731.8,2730.8,0.88457771]
[1739965403402,3.66073,2731.7,2730.8,0.88457771]
[1739965405752,9.81403,2731.8,2730.8,0.88457771]
[1739965406117,3.66072,2731.7,2730.8,0.88457771]
[1739965407866,7.32154,2731.7,2730.8,0.88457771]
[1739965408070,3.66072,2731.7,2730.8,0.88457771]
[1739965408660,7.32153,2731.7,2730.8,0.88457771]
[1739965409258,3.66072,2731.7,2730.8,0.88457771]
[1739965409661,5.38,2731.8,2730.8,0.88457771]
[1739965410363,9.04059,2731.8,2730.8,0.88457771]
[1739965411764,5.38,2731.8,2730.8,0.88457771]
[1739965412425,9.0406,2731.8,2730.8,0.88457771]
[1739965413371,5.38,2731.8,2730.8,0.88457771]
[1739965414025,3.66047,2731.9,2730.9,0.7645]
[1739965414255,3.66047,2731.9,2731.1,0.7645]
[1739965414565,3.66047,2731.9,2731.2,0.0577346]
[1739965414830,0.64,2731.3,2731.2,0.8222346]
[1739965416870,3.6599,2732.4,2731.2,3.56776413]
[1739965417069,3.6599,2732.4,2731.4,0.8294]
[1739965417070,3.66008,2732.2,2731.4,0.8294]
[1739965417371,0.64,2731.5,2731.4,0.8294]
[1739965417896,0.64,2731.5,2731.4,6.54631904]
[1739965418068,3.65945,2732.7,2731.4,5.71691904]
[1739965418245,3.66009,2732.2,2731.6,0.7815]
[1739965418439,3.66026,2732.1,2731.6,0.7815]
[1739965418844,5.79778924,2732.5,2731.6,0.7815]
[1739965419072,5.38,2732.5,2731.5,0.7936]
[1739965419689,5.38,2732.5,2731.6,0.55]
[1739965419987,5.38,2732.5,2731.8,0.7515]
[1739965420199,5.38,2732.5,2731.9,0.34970295]
[1739965420400,5.38,2732.5,2732.0,0.7515]
[1739965420548,5.38,2732.5,2732.2,0.8311]
[1739965420897,6.65908,2733.0,2732.2,0.8311]
[1739965420898,3.65908,2733.0,2732.2,0.8311]
[1739965421050,3.0,2732.8,2732.2,0.8311]
[1739965421850,3.65889,2733.1,2732.2,0.8311]
[1739965422327,3.0,2733.0,2732.2,0.8311]
[1739965422461,6.659,2733.0,2732.2,0.8311]
[1739965423091,6.659,2733.0,2732.2,1.0951]
[1739965423295,6.659,2733.0,2732.3,0.8028]
[1739965424993,5.38,2733.2,2732.3,0.8028]
[1739965425357,9.03879,2733.2,2732.3,0.7531]
[1739965425785,6.65848,2733.4,2732.5,0.8211]
[1739965425786,3.0,2733.4,2732.5,0.8211]
[1739965426109,6.65848,2733.4,2732.7,0.8211]
[1739965426500,6.65848,2733.4,2732.9,0.7862]
[1739965427195,9.0382,2733.6,2733.0,0.05070996]
[1739965427397,9.0382,2733.6,2733.1,0.7762]
[1739965428007,5.38,2733.6,2733.1,0.7762]
[1739965428214,3.0,2733.7,2733.2,0.05051275]
[1739965428505,6.65811,2733.7,2733.1,0.7762]
[1739965428698,3.0,2733.7,2733.1,0.7762]
[1739965428894,3.0,2733.7,2733.2,0.05051275]
[1739965429288,3.65853,2733.4,2733.2,0.05051275]
[1739965429502,3.65858,2733.3,2733.1,0.7762]
[1739965430371,3.65858,2733.3,2732.7,0.769]
[1739965431433,3.65871,2733.2,2732.7,0.769]
[1739965431574,3.0,2733.3,2732.7,0.769]
[1739965431774,3.659,2733.0,2732.5,0.8228]
[1739965433073,3.6592,2732.9,2732.5,0.8228]
[1739965433650,0.7583,2733.1,2732.0,0.7676]
[1739965433820,3.65965,2732.5,2732.0,0.7676]
[1739965434019,3.0,2732.4,2732.0,0.7676]
[1739965434911,6.65984,2732.4,2732.0,0.7676]
[1739965435102,3.66006,2732.2,2732.0,0.7676]
[1739965435305,3.66006,2732.2,2731.7,0.7606]
[1739965436555,16.654381,2732.1,2731.7,0.7606]
[1739965436849,7.32021,2732.2,2731.7,0.7606]
[1739965437024,3.66013,2732.2,2731.7,0.7606]
[1739965437221,3.66013,2732.2,2731.8,0.05024914]
[1739965437612,6.66,2732.3,2731.7,0.7606]
[1739965437826,3.0,2732.3,2731.9,0.05015121]
[1739965438114,6.65992,2732.3,2731.8,0.0502499]
[1739965438445,6.65992,2732.3,2731.9,0.04850917]
[1739965438446,3.66007,2732.2,2731.9,0.04850917]
[1739965438806,3.66007,2732.2,2731.7,0.7606]
[1739965439013,3.66019,2732.1,2731.8,0.04860786]
[1739965439241,3.66007,2732.2,2731.8,0.04860786]
[1739965439409,3.66007,2732.2,2731.7,0.7606]
[1739965439736,3.0,2732.2,2731.8,0.04702441]
[1739965439935,6.66005,2732.2,2731.8,0.04702441]